fUST/lending_fUST_20251023
["ID","MTS","AMOUNT","RATE_DAILY","PERIOD"]
[392141677,1761207038968,-5270.97,0.00024977,2]
[392141679,1761207038978,-5270.97,0.00024977,2]
[392141681,1761207038988,-5270.97,0.00024977,2]
[392141683,1761207038997,-5270.97,0.00024977,2]
[392141685,1761207039007,-500.0,0.00024977,2]
[392141687,1761207039016,-500.0,0.00024977,2]
[392141689,1761207039026,-500.0,0.00024977,2]
[392141691,1761207039036,-500.0,0.00024977,2]
[392141693,1761207039045,-579.50273712,0.00024977,2]
[392141695,1761207039055,-500.0,0.0002498,2]
[392141697,1761207039064,-500.0,0.0002498,2]
[392141699,1761207039073,-500.0,0.0002498,2]
[392141701,1761207039083,-500.0,0.0002498,2]
[392141703,1761207039093,-500.0,0.0002498,2]
[392141705,1761207039103,-500.0,0.0002498,2]
[392141707,1761207039112,-568.23641697,0.0002498,2]
[392141709,1761207039122,-500.0,0.0002498,2]
[392141711,1761207039135,-500.0,0.0002498,2]
[392141713,1761207039145,-500.0,0.0002498,2]
[392141715,1761207039155,-500.0,0.0002498,2]
[392141717,1761207039165,-500.0,0.0002498,2]
[392141719,1761207039175,-500.0,0.0002498,2]
[392141721,1761207039184,-500.0,0.0002498,2]
[392141723,1761207039193,-500.0,0.0002498,2]
[392141724,1761207039203,-500.0,0.0002498,2]
[392141727,1761207039212,-500.0,0.0002498,2]
[392141728,1761207039222,-500.0,0.0002498,2]
[392141731,1761207039231,-182.46874885,0.0002498,2]
[392141733,1761207039241,-650.43,0.0002498,2]
[392141735,1761207039250,-650.43,0.0002498,2]
[392141737,1761207039260,-650.43,0.0002498,2]
[392141739,1761207039270,-650.43,0.0002498,2]
[392141741,1761207039279,-650.43,0.0002498,2]
[392141743,1761207039288,-650.43,0.0002498,2]
[392141745,1761207039298,-650.43,0.0002498,2]
[392141747,1761207039308,-650.43,0.0002498,2]
[392141749,1761207039317,-650.43,0.0002498,2]
[392141751,1761207039326,-650.43,0.0002498,2]
[392141753,1761207039337,-650.43,0.0002498,2]
[392141755,1761207039347,-650.43,0.0002498,2]
[392141757,1761207039356,-650.43,0.0002498,2]
[392141759,1761207039365,-650.43,0.0002498,2]
[392141761,1761207039374,-650.64346995,0.0002498,2]
[392141763,1761207039384,-894.35,0.0002498,2]
[392141765,1761207039393,-894.35,0.0002498,2]
[392141767,1761207039402,-894.35,0.0002498,2]
[392141769,1761207039412,-894.35,0.0002498,2]
[392141771,1761207039422,-894.35,0.0002498,2]
[392141773,1761207039432,-894.35,0.0002498,2]
[392141790,1761207039577,-894.35,0.0002498,2]
[392141792,1761207039587,-894.35,0.0002498,2]
[392141794,1761207039597,-894.35,0.0002498,2]
[392141796,1761207039607,-894.35,0.0002498,2]
[392141798,1761207039616,-894.35,0.0002498,2]
[392141800,1761207039627,-894.35,0.0002498,2]
[392141802,1761207039638,-894.35,0.0002498,2]
[392141804,1761207039647,-894.35,0.0002498,2]
[392141806,1761207039657,-894.45652554,0.0002498,2]
[392141808,1761207039667,-1766.63,0.0002498,2]
[392141810,1761207039676,-1766.63,0.0002498,2]
[392141812,1761207039686,-1766.63,0.0002498,2]
[392141814,1761207039695,-1766.63,0.0002498,2]
[392141816,1761207039704,-1766.63,0.0002498,2]
[392141818,1761207039714,-1766.63,0.0002498,2]
[392141820,1761207039723,-1766.63,0.0002498,2]
[392141822,1761207039732,-1766.63,0.0002498,2]
[392141824,1761207039742,-1766.63,0.0002498,2]
[392141826,1761207039752,-1766.63,0.0002498,2]
[392141829,1761207039762,-1766.63,0.0002498,2]
[392141831,1761207039772,-1766.63,0.0002498,2]
[392141832,1761207039781,-1766.63,0.0002498,2]
[392141835,1761207039790,-1766.63,0.0002498,2]
[392141837,1761207039800,-1766.67622807,0.0002498,2]
[392141839,1761207039809,-5270.97,0.0002498,2]
[392141841,1761207039819,-5270.97,0.0002498,2]
[392141843,1761207039828,-5270.97,0.0002498,2]
[392141845,1761207039838,-5270.97,0.0002498,2]
[392141847,1761207039852,-5270.97,0.0002498,2]
[392141849,1761207039861,-5270.97,0.0002498,2]
[392141851,1761207039870,-5270.97,0.0002498,2]
[392141853,1761207039880,-5270.97,0.0002498,2]
[392141855,1761207039888,-5270.97,0.0002498,2]
[392141857,1761207039898,-5270.97,0.0002498,2]
[392141859,1761207039907,-5270.97,0.0002498,2]
[392141861,1761207039917,-5270.97,0.0002498,2]
[392141863,1761207039926,-5270.97,0.0002498,2]
[392141865,1761207039935,-5270.97,0.0002498,2]
[392141867,1761207039945,-5271.06364893,0.0002498,2]
[392141869,1761207039955,-2067.9294382,0.00024988,2]
[392141871,1761207039964,-417.15472785,0.00025,10]
[392141873,1761207039973,-20000.0,0.00025,30]
[392141875,1761207039983,-417.15472785,0.00025,30]
[392141877,1761207039993,-403.24192968,0.00025,30]
[392141879,1761207040003,-243.51391365,0.00025,2]
[392141881,1761207040012,-624.39,0.00025009,2]
[392141883,1761207040022,-1799.17901935,0.00025018,2]
[392141885,1761207040031,-1500.0,0.00025029,2]
[392141887,1761207040041,-1500.0,0.00025029,2]
[392141889,1761207040050,-1648.1649969,0.00025029,2]
[392141891,1761207040060,-1500.0,0.00025068,2]
[392141893,1761207040069,-1500.0,0.00025068,2]
[392141895,1761207040079,-1500.0,0.00025068,2]
[392141897,1761207040089,-1009.15279918,0.00025068,2]
[392141899,1761207040099,-1500.0,0.00025068,2]
[392141901,1761207040108,-1500.0,0.00025068,2]
[392141903,1761207040118,-1016.48762778,0.00025068,2]
[392141905,1761207040127,-1500.0,0.00025068,2]
[392141907,1761207040136,-854.79328094,0.00025068,2]
[392141909,1761207040146,-1500.0,0.00025068,2]
[392141911,1761207040155,-1500.0,0.00025068,2]
[392141913,1761207040165,-1500.0,0.00025068,2]
[392141915,1761207040174,-1500.0,0.00025068,2]
[392141917,1761207040183,-1014.79798091,0.00025068,2]
[392141919,1761207040193,-1500.0,0.00025068,2]
[392141921,1761207040202,-1500.0,0.00025068,2]
[392141923,1761207040212,-1400.07886832,0.00025068,2]
[392141925,1761207040222,-1500.0,0.00025068,2]
[392141927,1761207040231,-1500.0,0.00025068,2]
[392141929,1761207040241,-1500.0,0.00025068,2]
[392141932,1761207040252,-922.0387186,0.00025068,2]
[392141934,1761207040261,-1500.0,0.00025068,2]
[392141935,1761207040271,-1500.0,0.00025068,2]
[392141938,1761207040280,-503.05602523,0.00025068,2]
[392141940,1761207040290,-1500.0,0.00025068,2]
[392141941,1761207040300,-977.84822159,0.00025068,2]
[392141943,1761207040309,-1120.84023224,0.00025068,2]
[392141946,1761207040319,-1500.0,0.00025068,2]
[392141947,1761207040330,-1548.79272722,0.00025068,2]
[392141949,1761207040339,-1500.0,0.00025068,2]
[392141951,1761207040350,-500.0,0.00025086,2]
[392141953,1761207040361,-237.00803039,0.00025321,2]
[392141956,1761207040370,-828.38780603,0.00025321,2]
[392141958,1761207040379,-500.0,0.00025321,2]
[392141959,1761207040388,-500.0,0.00025321,2]
[392141961,1761207040398,-505.59155942,0.00025321,2]
[392141963,1761207040406,-453.56483523,0.00025321,2]
[392141965,1761207040415,-1000.0,0.00025321,2]
[392141968,1761207040426,-1000.0,0.00025321,2]
[392141970,1761207040435,-1000.0,0.00025321,2]
[392141971,1761207040444,-664.0283791,0.00025321,2]
[392141973,1761207040453,-1000.0,0.00025321,2]
[392141976,1761207040462,-1000.0,0.00025321,2]
[392141978,1761207040471,-1000.0,0.00025321,2]
[392141979,1761207040481,-1000.0,0.00025321,2]
[392141982,1761207040490,-1000.0,0.00025321,2]
[392141984,1761207040500,-1000.0,0.00025321,2]
[392141986,1761207040509,-1000.0,0.00025321,2]
[392141988,1761207040519,-1032.65157223,0.00025321,2]
[392141990,1761207040528,-1000.0,0.00025321,2]
[392141992,1761207040537,-1000.0,0.00025321,2]
[392141994,1761207040546,-1000.0,0.00025321,2]
[392141996,1761207040556,-1000.0,0.00025321,2]
[392141998,1761207040566,-1000.0,0.00025321,2]
[392142000,1761207040575,-507.94448972,0.00025321,2]
[392142002,1761207040585,-1000.0,0.00025321,2]
[392142004,1761207040596,-505.56177251,0.00025321,2]
[392142006,1761207040606,-489.32734301,0.00025321,2]
[392142008,1761207040616,-1000.0,0.00025321,2]
[392142010,1761207040625,-1000.0,0.00025321,2]
[392142012,1761207040635,-508.21194354,0.00025321,2]
[392142014,1761207040644,-1000.0,0.00025321,2]
[392142016,1761207040653,-1000.0,0.00025321,2]
[392142018,1761207040663,-1886.78,0.00025332,3]
[392142020,1761207040672,-943.38,0.00025332,3]
[392142022,1761207040681,-471.7,0.00025332,3]
[392142024,1761207040690,-175.364,0.00025335,2]
[392142026,1761207040699,-3773.54,0.00025338,3]
[392142028,1761207040708,-15094.18,0.00025348,3]
[392142030,1761207040718,-7547.08,0.00025348,3]
[392142032,1761207040727,-403.24192968,0.0002536,3]
[392142034,1761207040736,-500.0,0.0002536,2]
[392142036,1761207040745,-1000.0,0.00025421,2]
[392142038,1761207040754,-767.91631659,0.00025421,2]
[392142040,1761207040763,-160.0,0.00025456,2]
[392142042,1761207040773,-300.0,0.00025485,20]
[392142044,1761207040782,-300.0,0.00025485,20]
[392142046,1761207040791,-300.0,0.00025485,20]
[392142048,1761207040800,-300.0,0.00025485,20]
[392142050,1761207040810,-300.0,0.00025485,20]
[392142052,1761207040819,-300.0,0.00025485,20]
[392142054,1761207040829,-300.0,0.00025485,20]
[392142056,1761207040839,-300.0,0.00025485,20]
[392142058,1761207040853,-300.0,0.00025485,20]
[392142060,1761207040862,-300.0,0.00025485,20]
[392142062,1761207040871,-300.0,0.00025485,20]
[392142064,1761207040880,-300.0,0.00025485,20]
[392142066,1761207040890,-300.0,0.00025485,20]
[392142068,1761207040899,-300.0,0.00025485,20]
[392142070,1761207040909,-300.0,0.00025485,20]
[392142072,1761207040918,-600.0,0.00025498,20]
[392142074,1761207040927,-1000.0,0.00025521,2]
[392142076,1761207040937,-1000.0,0.00025521,2]
[392142078,1761207040946,-500.0,0.00025521,2]
[392142080,1761207040955,-500.81940668,0.00025521,2]
[392142082,1761207040964,-1054.14031007,0.00025521,2]
[392142084,1761207040975,-1002.34669803,0.00025521,2]
[392142086,1761207040984,-500.0,0.00025521,2]
[392142088,1761207040993,-1000.0,0.00025521,2]
[392142090,1761207041003,-1000.0,0.00025521,2]
[392142092,1761207041012,-1000.0,0.00025521,2]
[392142094,1761207041021,-530.93053923,0.00025521,2]
[392142096,1761207041030,-1000.0,0.00025521,2]
[392142098,1761207041039,-1000.0,0.00025521,2]
[392142100,1761207041049,-1219.33073743,0.00025577,2]
[392142102,1761207041058,-2000.0,0.00025577,2]
[392142104,1761207041067,-28999.0,0.000256,7]
[392142106,1761207041077,-1959.24520816,0.00025616,2]
[392142108,1761207041086,-2145.585206,0.00025616,2]
[392142110,1761207041095,-2000.0,0.00025616,2]
[392142112,1761207041105,-2000.0,0.00025616,2]
[392142114,1761207041114,-2000.0,0.00025616,2]
[392142116,1761207041123,-2000.0,0.00025616,2]
[392142118,1761207041132,-1543.30389971,0.00025616,2]
[392142120,1761207041141,-2122.9652031,0.00025616,2]
[392142122,1761207041150,-2000.0,0.00025616,2]
[392142124,1761207041159,-834.96234492,0.00025616,2]
[392142126,1761207041168,-2000.0,0.00025616,2]
[392142128,1761207041178,-2000.0,0.00025616,2]
[392142130,1761207041187,-2000.0,0.00025616,2]
[392142132,1761207041196,-2000.0,0.00025616,2]
[392142134,1761207041206,-500.0,0.00025616,2]
[392142136,1761207041215,-268.81353123,0.00025616,2]
[392142138,1761207041224,-2037.35341875,0.00025616,2]
[392142140,1761207041234,-2000.0,0.00025616,2]
[392142142,1761207041243,-2000.0,0.00025616,2]
[392142144,1761207041252,-2000.0,0.00025616,2]
[392142146,1761207041261,-500.0,0.00025634,2]
[392142148,1761207041269,-500.99787454,0.00025773,2]
[392142150,1761207041278,-500.0,0.00025773,2]
[392142152,1761207041287,-501.52385133,0.00025773,2]
[392142154,1761207041296,-417.15472785,0.000258,7]
[392142156,1761207041308,-500.0,0.00025815,2]
[392142158,1761207041317,-153.60058141,0.00025815,2]
[392142160,1761207041326,-151.0,0.00025815,2]
[392142162,1761207041335,-156.6153852,0.00025815,2]
[392142164,1761207041344,-151.0,0.00025815,2]
[392142166,1761207041353,-500.0,0.00025815,2]
[392142168,1761207041362,-500.0,0.00025815,2]
[392142170,1761207041372,-596.02277331,0.00025815,2]
[392142172,1761207041381,-153.44704061,0.00025815,2]
[392142174,1761207041389,-158.14085051,0.00025815,2]
[392142176,1761207041399,-151.0,0.00025815,2]
[392142178,1761207041408,-500.0,0.00025815,2]
[392142180,1761207041416,-151.0,0.00025815,2]
[392142182,1761207041425,-151.23942676,0.00025815,2]
[392142192,1761207041434,-154.72642015,0.00025815,2]
[392142194,1761207041522,-151.0,0.00025815,2]
[392142196,1761207041531,-151.0,0.00025815,2]
[392142198,1761207041541,-172.66492286,0.00025815,2]
[392142200,1761207041550,-1500.0,0.00025868,2]
[392142202,1761207041559,-874.71343951,0.00025868,2]
[392142204,1761207041569,-1500.0,0.00025868,2]
[392142206,1761207041578,-1507.10721589,0.00025868,2]
[392142208,1761207041587,-1548.97049182,0.00025868,2]
[392142210,1761207041596,-1500.0,0.00025868,2]
[392142212,1761207041605,-1500.0,0.00025868,2]
[392142214,1761207041614,-1010.72948539,0.00025868,2]
[392142216,1761207041623,-916.93481961,0.00025868,2]
[392142218,1761207041633,-1500.0,0.00025868,2]
[392142220,1761207041642,-1500.0,0.00025868,2]
[392142222,1761207041651,-1500.0,0.00025868,2]
[392142224,1761207041661,-1500.0,0.00025868,2]
[392142226,1761207041672,-1500.0,0.00025868,2]
[392142228,1761207041681,-1008.87243638,0.00025868,2]
[392142230,1761207041691,-1500.0,0.00025868,2]
[392142232,1761207041700,-1314.99357863,0.00025868,2]
[392142234,1761207041709,-1089.70909596,0.00025868,2]
[392142236,1761207041719,-1006.90143914,0.00025868,2]
[392142238,1761207041728,-1500.0,0.00025868,2]
[392142240,1761207041738,-500.0,0.0002587,2]
[392142242,1761207041747,-152.04275727,0.0002587,2]
[392142244,1761207041757,-151.0,0.0002587,2]
[392142247,1761207041767,-151.0,0.0002587,2]
[392142248,1761207041776,-500.0,0.0002587,2]
[392142250,1761207041786,-151.0,0.0002587,2]
[392142253,1761207041795,-162.36300707,0.0002587,2]
[392142255,1761207041805,-158.30559823,0.00025873,2]
[392142256,1761207041814,-1608.800232,0.00025882,2]
[392142258,1761207041823,-459.94427596,0.00025886,2]
[392142260,1761207041832,-500.0,0.00025908,2]
[392142262,1761207041841,-420.0,0.00025909,2]
[392142264,1761207041850,-420.0,0.00025909,2]
[392142266,1761207041859,-420.0,0.00025909,2]
[392142268,1761207041869,-420.0,0.00025909,2]
[392142270,1761207041878,-420.0,0.00025909,2]
[392142272,1761207041887,-1680.0,0.00025919,2]
[392142274,1761207041896,-500.0,0.00025925,2]
[392142276,1761207041906,-151.0,0.00025925,2]
[392142279,1761207041919,-265.69047996,0.00025925,2]
[392142281,1761207041929,-156.18914163,0.00025925,2]
[392142283,1761207041938,-151.0,0.00025925,2]
[392142285,1761207041947,-1500.0,0.00025968,2]
[392142287,1761207041956,-728.46,0.00025971,2]
[392142289,1761207041966,-500.0,0.00025979,2]
[392142291,1761207041975,-151.0,0.00025979,2]
[392142293,1761207041985,-151.0,0.00025979,2]
[392142295,1761207041994,-160.0,0.00026,7]
[392142297,1761207042003,-159.0,0.00026,7]
[392142299,1761207042012,-260.0,0.00026004,2]
[392142301,1761207042021,-1680.0,0.00026028,2]
[392142303,1761207042031,-500.0,0.00026034,2]
[392142305,1761207042040,-251.48318548,0.00026034,2]
[392142307,1761207042049,-170.28173664,0.00026034,2]
[392142309,1761207042058,-241.09244097,0.00026054,2]
[392142311,1761207042067,-500.0,0.00026068,2]
[392142313,1761207042077,-214.52445024,0.00026068,2]
[392142315,1761207042087,-1105.2179035,0.00026068,2]
[392142317,1761207042097,-1001.77372713,0.00026068,2]
[392142319,1761207042106,-1501.62987116,0.00026068,2]
[392142321,1761207042116,-1240.99268942,0.00026068,2]
[392142323,1761207042126,-1500.0,0.00026068,2]
[392142325,1761207042136,-500.0,0.00026089,2]
[392142327,1761207042146,-322.44706909,0.00026125,2]
[392142329,1761207042156,-500.0,0.00026144,2]
[392142331,1761207042165,-2500.0,0.00026164,2]
[392142333,1761207042175,-2500.0,0.00026164,2]
[392142335,1761207042184,-2500.0,0.00026164,2]
[392142337,1761207042194,-693.49122843,0.00026164,2]
[392142339,1761207042203,-2500.0,0.00026164,2]
[392142341,1761207042212,-2500.0,0.00026164,2]
[392142343,1761207042222,-2500.0,0.00026164,2]
[392142345,1761207042231,-2500.0,0.00026164,2]
[392142347,1761207042240,-2275.98832958,0.00026164,2]
[392142349,1761207042250,-1538.41673651,0.00026164,2]
[392142351,1761207042259,-2500.0,0.00026164,2]
[392142353,1761207042268,-2500.0,0.00026164,2]
[392142355,1761207042278,-500.0,0.00026182,2]
[392142357,1761207042287,-500.0,0.00026199,2]
[392142359,1761207042296,-500.0,0.00026253,2]
[392142361,1761207042305,-500.0,0.00026308,2]
[392142363,1761207042314,-558.03307407,0.00026321,2]
[392142365,1761207042323,-761.22829459,0.00026359,2]
[392142367,1761207042332,-500.0,0.00026363,2]
[392142369,1761207042343,-500.0,0.00026416,2]
[392142371,1761207042353,-2000.0,0.00026416,2]
[392142373,1761207042363,-1949.41758538,0.00026416,2]
[392142375,1761207042373,-2000.0,0.00026416,2]
[392142377,1761207042383,-2000.0,0.00026416,2]
[392142379,1761207042392,-1014.14811822,0.00026416,2]
[392142381,1761207042401,-536.80750785,0.00026416,2]
[392142383,1761207042410,-1500.0,0.00026416,2]
[392142385,1761207042419,-1000.0,0.00026416,2]
[392142387,1761207042429,-259.65550282,0.00026416,2]
[392142389,1761207042438,-2000.0,0.00026416,2]
[392142391,1761207042448,-500.0,0.00026418,2]
[392142393,1761207042457,-500.0,0.00026456,2]
[392142395,1761207042466,-500.0,0.00026473,2]
[392142397,1761207042476,-151.0,0.00026491,7]
[392142399,1761207042487,-151.0,0.00026491,7]
[392142402,1761207042496,-151.0,0.00026491,7]
[392142404,1761207042505,-655.404973,0.00026491,7]
[392142406,1761207042515,-151.0,0.00026491,7]
[392142408,1761207042524,-655.404973,0.00026491,7]
[392142410,1761207042534,-151.0,0.00026491,7]
[392142412,1761207042543,-151.0,0.00026491,7]
[392142413,1761207042552,-655.404973,0.00026491,7]
[392142414,1761207042562,-151.0,0.00026491,7]
[392142415,1761207042571,-151.0,0.00026491,7]
[392142416,1761207042581,-151.0,0.00026491,7]
[392142417,1761207042591,-655.404973,0.00026491,7]
[392142418,1761207042600,-151.0,0.00026491,7]
[392142419,1761207042610,-151.0,0.00026491,7]
[392142420,1761207042619,-151.0,0.00026491,7]
[392142421,1761207042628,-237.670546,0.00026491,7]
[392142422,1761207042638,-237.670546,0.00026491,7]
[392142423,1761207042648,-151.0,0.00026491,7]
[392142424,1761207042658,-151.0,0.00026491,7]
[392142426,1761207042667,-151.0,0.00026491,2]
[392142428,1761207042676,-971.890941,0.00026491,7]
[392142430,1761207042687,-237.670546,0.00026491,7]
[392142432,1761207042697,-151.0,0.00026491,7]
[392142434,1761207042706,-151.0,0.00026491,2]
[392142436,1761207042716,-971.890941,0.00026491,7]
[392142439,1761207042726,-151.0,0.00026491,7]
[392142441,1761207042735,-151.0,0.00026491,7]
[392142442,1761207042745,-237.670546,0.00026491,7]
[392142444,1761207042754,-971.890941,0.00026491,7]
[392142446,1761207042764,-971.890941,0.00026491,7]
[392142449,1761207042774,-700.340436,0.00026491,7]
[392142451,1761207042783,-700.340436,0.00026491,7]
[392142452,1761207042792,-700.340436,0.00026491,7]
[392142454,1761207042802,-700.340436,0.00026491,7]
[392142456,1761207042811,-393.438978,0.00026491,7]
[392142458,1761207042819,-393.438978,0.00026491,7]
[392142460,1761207042828,-183.198921,0.00026491,7]
[392142462,1761207042838,-393.438978,0.00026491,7]
[392142464,1761207042852,-183.198921,0.00026491,7]
[392142466,1761207042862,-393.438978,0.00026491,7]
[392142468,1761207042871,-183.198921,0.00026491,7]
[392142470,1761207042879,-183.198921,0.00026491,7]
[392142472,1761207042891,-160.174814,0.00026491,7]
[392142474,1761207042900,-151.489662,0.00026491,7]
[392142476,1761207042910,-160.174814,0.00026491,7]
[392142478,1761207042919,-151.0,0.00026491,7]
[392142480,1761207042930,-160.174814,0.00026491,7]
[392142482,1761207042940,-151.0,0.00026491,7]
[392142484,1761207042950,-151.0,0.00026491,7]
[392142486,1761207042959,-160.174814,0.00026491,7]
[392142488,1761207042968,-9252.4480862,0.00026502,30]
[392142490,1761207042976,-151.0,0.00026502,7]
[392142492,1761207042986,-151.0,0.00026502,7]
[392142494,1761207042996,-151.0,0.00026502,7]
[392142496,1761207043006,-151.0,0.00026502,7]
[392142498,1761207043015,-151.0,0.00026502,7]
[392142500,1761207043024,-1074.163462,0.00026502,7]
[392142502,1761207043034,-151.0,0.00026502,7]
[392142504,1761207043043,-1074.163462,0.00026502,7]
[392142506,1761207043053,-339.399069,0.00026502,7]
[392142508,1761207043063,-1074.163462,0.00026502,7]
[392142510,1761207043072,-339.399069,0.00026502,7]
[392142513,1761207043086,-197.930796,0.00026502,7]
[392142515,1761207043097,-1074.163462,0.00026502,7]
[392142517,1761207043106,-339.399069,0.00026502,7]
[392142518,1761207043115,-151.0,0.00026502,7]
[392142521,1761207043125,-151.0,0.00026502,7]
[392142522,1761207043134,-197.930796,0.00026502,7]
[392142524,1761207043143,-339.399069,0.00026502,7]
[392142526,1761207043154,-151.0,0.00026502,7]
[392142528,1761207043163,-151.0,0.00026502,7]
[392142531,1761207043173,-197.930796,0.00026502,7]
[392142533,1761207043182,-197.930796,0.00026502,7]
[392142534,1761207043191,-151.0,0.00026502,7]
[392142537,1761207043202,-151.0,0.00026502,7]
[392142538,1761207043212,-155.622797,0.00026502,7]
[392142541,1761207043221,-151.0,0.00026502,7]
[392142550,1761207043301,-151.0,0.00026502,7]
[392142552,1761207043312,-151.0,0.00026502,7]
[392142554,1761207043321,-151.0,0.00026502,7]
[392142556,1761207043330,-151.0,0.00026502,7]
[392142558,1761207043339,-757.548518,0.00026502,7]
[392142560,1761207043348,-369.066472,0.00026502,7]
[392142562,1761207043358,-757.548518,0.00026502,7]
[392142564,1761207043368,-369.066472,0.00026502,7]
[392142566,1761207043377,-757.548518,0.00026502,7]
[392142568,1761207043386,-757.548518,0.00026502,7]
[392142570,1761207043395,-369.066472,0.00026502,7]
[392142572,1761207043405,-369.066472,0.00026502,7]
[392142574,1761207043414,-1001.73134156,0.00026516,2]
[392142576,1761207043424,-500.0,0.00026527,2]
[392142578,1761207043433,-360.0,0.00026551,2]
[392142580,1761207043443,-911.22425104,0.00026553,2]
[392142582,1761207043452,-500.0,0.00026582,2]
[392142584,1761207043461,-2000.0,0.00026616,2]
[392142586,1761207043470,-500.0,0.00026637,2]
[392142588,1761207043480,-349.805669,0.00026676,2]
[392142590,1761207043489,-159.0,0.00026685,21]
[392142592,1761207043501,-500.0,0.00026692,2]
[392142594,1761207043511,-151.0,0.00026712,7]
[392142596,1761207043521,-151.0,0.00026712,7]
[392142598,1761207043530,-151.0,0.00026712,7]
[392142600,1761207043539,-151.0,0.00026712,7]
[392142602,1761207043549,-151.0,0.00026712,7]
[392142604,1761207043559,-151.0,0.00026712,7]
[392142606,1761207043568,-166.719209,0.00026712,2]
[392142608,1761207043577,-166.719209,0.00026712,2]
[392142610,1761207043587,-151.0,0.00026712,7]
[392142612,1761207043597,-166.719209,0.00026712,2]
[392142614,1761207043606,-151.0,0.00026712,7]
[392142616,1761207043615,-236.476012,0.00026712,7]
[392142618,1761207043624,-166.719209,0.00026712,2]
[392142620,1761207043633,-236.476012,0.00026712,7]
[392142622,1761207043642,-236.476012,0.00026712,7]
[392142624,1761207043651,-236.476012,0.00026712,7]
[392142626,1761207043660,-151.0,0.00026712,7]
[392142628,1761207043669,-1016.850283,0.00026712,7]
[392142630,1761207043678,-151.0,0.00026712,7]
[392142632,1761207043687,-1016.850283,0.00026712,7]
[392142634,1761207043696,-151.0,0.00026712,7]
[392142636,1761207043706,-1016.850283,0.00026712,7]
[392142638,1761207043716,-10000.0,0.00026712,7]
[392142640,1761207043726,-1016.850283,0.00026712,7]
[392142642,1761207043735,-10000.0,0.00026712,7]
[392142644,1761207043744,-10000.0,0.00026712,7]
[392142646,1761207043754,-10000.0,0.00026712,7]
[392142648,1761207043764,-151.0,0.00026712,7]
[392142650,1761207043773,-10000.0,0.00026712,7]
[392142652,1761207043782,-160.402576,0.00026712,7]
[392142654,1761207043792,-151.0,0.00026712,7]
[392142656,1761207043801,-10000.0,0.00026712,7]
[392142658,1761207043811,-160.402576,0.00026712,7]
[392142660,1761207043820,-160.402576,0.00026712,7]
[392142662,1761207043830,-677.415532,0.00026712,7]
[392142664,1761207043840,-160.402576,0.00026712,7]
[392142666,1761207043853,-151.0,0.00026712,7]
[392142668,1761207043863,-677.415532,0.00026712,7]
[392142670,1761207043872,-151.0,0.00026712,7]
[392142672,1761207043881,-677.415532,0.00026712,7]
[392142674,1761207043890,-151.0,0.00026712,7]
[392142675,1761207043899,-677.415532,0.00026712,7]
[392142677,1761207043909,-151.0,0.00026712,7]
[392142679,1761207043918,-151.0,0.00026712,7]
[392142681,1761207043927,-151.0,0.00026712,7]
[392142682,1761207043936,-151.0,0.00026712,7]
[392142683,1761207043945,-1638.8963,0.00026712,7]
[392142684,1761207043954,-1638.8963,0.00026712,7]
[392142685,1761207043971,-1638.8963,0.00026712,7]
[392142686,1761207043981,-1638.8963,0.00026712,7]
[392142687,1761207043991,-151.440173,0.00026712,7]
[392142688,1761207044000,-151.0,0.00026712,7]
[392142689,1761207044010,-156.456194,0.00026712,7]